[Event "3rd Avagyan Memorial 2022"]
[Site "Jermuk"]
[Date "2022.06.24"]
[Round "5.1"]
[White "Nihal Sarin"]
[Black "Niemann, Hans Moke"]
[Result "1/2-1/2"]
[ECO "B13"]
[WhiteElo "2646"]
[BlackElo "2656"]
[Annotator "TA"]
[PlyCount "109"]
[EventDate "2022.06.20"]
[EventType "tourn"]
[EventCountry "ARM"]
[SourceTitle "playchess.com"]
[Source "ChessBase"]
[SourceQuality "1"]
[TimeControl "40/5400+30:1800+30"]

{[%evp 13,109,9,21,17,21,29,37,23,46,33,28,19,37,0,0,0,0,0,17,0,20,5,12,0,0,-15,-13,-20,11,13,31,-14,0,-45,-39,-43,-25,-98,0,0,38,-34,-27,-3,0,0,0,-50,-62,-67,-50,-92,-88,-143,-83,-104,-102,-94,-104,-104,-104,-104,-103,-102,-97,-93,-99,-162,-162,-164,-166,-162,-155,-123,-83,-81,0,0,0,0,0,0,0,-191,0,0,0,-12,0,0,0,0,0,0,0,0,0,0]} 1. e4 {[%emt 0:01:14]} c6 {[%emt 0:01:51]} 2. d4 {[%emt 0:00:51]} d5 {[%emt 0:00:10]} 3. exd5 {[%emt 0:00:04]} cxd5 {[%emt 0:00:10]} 4. Bd3 {[%emt 0:00:02]} Nc6 {[%emt 0:00:31]} 5. c3 {[%emt 0:00:05]} Nf6 {[%emt 0:00:11]} 6. h3 {[%emt 0:00:05]} g6 {[%emt 0:04:00]} 7. Nf3 {[%emt 0:00:18]} Qc7 {[%emt 0:02:39] Recently 7...Bf5 got a lot of attention.} 8. Qc2 {[%emt 0:02:44] B13: Caro-Kann: Exchange Variation and Panov-Botvinnik Attack.} Bg7 {[%emt 0:01:00]} 9. O-O {[%emt 0:00:07]} O-O {[%emt 0:00:29]} 10. Re1 {[%emt 0:00:03] White is slightly better.} Bd7 {[%emt 0:03:48]} 11. Bg5 {[%emt 0:07:00] [#]} Rae8 $146 {[%emt 0:11:07]} ({Predecessor:} 11... e6 12. Nbd2 Rfc8 13. Qc1 Be8 14. Nf1 Na5 15. N1h2 Nc4 16. Bxf6 Bxf6 17. g4 b5 {1-0 (40) Koykka,P (2399)-Ronka,E (2270) Helsinki 2019}) 12. Na3 {[%emt 0:14:11]} h6 {[%emt 0:03:29]} 13. Bxf6 {[%emt 0:04:00]} Bxf6 {[%emt 0:00:20]} 14. Qd2 {[%emt 0:00:54]} Kg7 {[%emt 0:05:57]} 15. Nc2 {[%emt 0:02:10]} e6 {[%emt 0:00:40]} 16. Re2 {[%emt 0:01:11]} Rb8 {[%emt 0:01:48]} 17. Rae1 {[%emt 0:04:44]} b5 {[%emt 0:01:53][%cal Bb7b5,Bb5b4][%mdl 32]} 18. Ne3 {[%emt 0:16:32]} h5 {[%emt 0:00:17] Prevents Ng4.} 19. g3 {[%emt 0:00:21]} b4 {[%emt 0:01:46]} 20. Ng2 {[%emt 0:00:43]} Qa5 {[%emt 0:05:21]} 21. Nf4 {[%emt 0:01:16]} Qxa2 {[%emt 0:06:30]} 22. Bb1 {[%emt 0:15:47]} (22. Qc2 $5 {[%cal Rd3g6]} Ne7 23. Qc1 $15) 22... Qa6 {[%emt 0:01:04]} 23. Bd3 {[%emt 0:04:21] [#]} bxc3 $1 {[%emt 0:03:33]} 24. bxc3 {[%emt 0:00:13]} (24. Qc2 Qb6) 24... Qa3 {[%emt 0:00:48]} 25. Bc2 {[%emt 0:02:37] Against Rb3} (25. g4 $11 hxg4 26. hxg4) 25... Qa6 {[%emt 0:08:09]} ({Black should try} 25... Rb2 $17 26. Nd3 Rb5) 26. h4 {[%emt 0:03:58] Hoping for Ng5.} Rh8 {[%emt 0:01:57] [#]} 27. Nd3 {[%emt 0:01:47]} (27. Bxg6 $1 $14 fxg6 28. Rxe6) 27... Qa5 {[%emt 0:02:05]} 28. Nc5 {[%emt 0:00:59]} Bc8 {[%emt 0:01:30]} 29. Ng5 {[%emt 0:03:17] Pair of Knights!} Nd8 {[%emt 0:14:52]} 30. Bd3 {[%emt 0:08:44]} (30. Qd3 $11) 30... Qc7 $15 {[%emt 0:00:49]} 31. Nf3 {[%emt 0:02:40]} Nc6 {[%emt 0:00:50]} 32. Qa2 {[%emt 0:01:10]} a5 {[%emt 0:01:57]} 33. Qa4 {[%emt 0:01:51]} ({White must play} 33. Bc2) 33... Rd8 {[%emt 0:03:45]} (33... Rb6 $142 $1 {[%cal Oe6e5]} 34. Qa2 Re8) 34. Bb5 $17 {[%emt 0:00:16]} Rd6 {[%emt 0:00:28]} 35. Bxc6 {[%emt 0:00:47]} Rxc6 {[%emt 0:00:37]} 36. Ne5 {[%emt 0:00:18]} Rd6 {[%emt 0:00:18]} 37. Ra2 {[%emt 0:00:09]} Ra8 {[%emt 0:01:11]} 38. Rb2 {[%emt 0:01:03]} Rb6 {[%emt 0:04:18]} 39. Rxb6 {[%emt 0:00:32]} Qxb6 {[%emt 0:00:05]} 40. Ned7 {[%emt 0:00:00]} (40. Qe8 $17 {was worth a try.} Bxe5 41. Rxe5) 40... Bxd7 $19 {[%emt 0:00:00]} 41. Nxd7 {[%emt 0:02:37]} Qc7 {[%emt 0:02:03]} 42. Nc5 {[%emt 0:00:14][%cal Oe1e6]} Qc8 {[%emt 0:01:52]} 43. Rb1 {[%emt 0:01:26]} e5 {[%emt 0:02:06] And now ...exd4 would win.} 44. Nd7 {[%emt 0:04:06] [#]} Ra6 {[%emt 0:08:30]} ({But not} 44... Qxc3 $6 45. Nxf6 Kxf6 46. dxe5+ Kg7 47. e6 $11) (44... e4 $1 $17 {[%cal Re4e3] aiming for ...e3.} 45. Qb5 Ra6 46. Qxd5 Qxc3) 45. dxe5 $11 {[%emt 0:06:52]} Be7 {[%emt 0:00:06]} 46. Qd4 {[%emt 0:10:31]} a4 {[%emt 0:01:44] Threatens to win with ...a3.} 47. e6+ {[%emt 0:01:58]} ({Much weaker is} 47. Qxd5 Qxc3 48. Nf6 Ra5 $17) 47... f6 $1 {[%emt 0:00:19]} 48. Qxd5 $2 {[%emt 0:00:08] [#]} (48. Rb8 $11 {and White is okay.} Qc6 49. Kg2) 48... Qxc3 $2 {[%emt 0:02:13]} (48... a3 $1 $19 49. c4 Rd6) 49. Kg2 {[%emt 0:05:06] The position is equal.} Rd6 {[%emt 0:03:52]} 50. Qa8 {[%emt 0:01:58]} Qc6+ {[%emt 0:09:37]} 51. Qxc6 {[%emt 0:00:07]} Rxc6 {[%emt 0:00:03]} 52. Rb7 {[%emt 0:00:28]} a3 {[%emt 0:02:38] White must now prevent ...Kh6.} 53. Nc5 {[%emt 0:00:25]} Kf8 {[%emt 0:00:38]} 54. Rb8+ $1 {[%emt 0:00:04]} Kg7 {[%emt 0:00:06]} 55. Rb7 {[%emt 0:00:04] Weighted Error Value: White=0.19 (very precise) /Black=0.15 (very precise)} 1/2-1/2

[Event "3rd Avagyan Memorial 2022"]
[Site "Jermuk"]
[Date "2022.06.24"]
[Round "5.2"]
[White "Donchenko, Alexander"]
[Black "Gharibyan, Mamikon"]
[Result "1-0"]
[ECO "D32"]
[WhiteElo "2599"]
[BlackElo "2487"]
[Annotator "TA"]
[PlyCount "53"]
[EventDate "2022.06.20"]
[EventType "tourn"]
[EventCountry "ARM"]
[SourceTitle "playchess.com"]
[Source "ChessBase"]
[SourceQuality "1"]
[TimeControl "40/5400+30:1800+30"]

{[%evp 17,53,39,39,15,38,17,18,2,6,3,2,0,0,0,0,7,0,0,0,0,0,0,0,0,149,141,225,227,212,221,208,212,213,226,29984,29985,29985,29986]} 1. c4 {[%emt 0:00:02]} e6 {[%emt 0:00:11]} 2. Nf3 {[%emt 0:01:03]} Nf6 {[%emt 0:00:21]} 3. Nc3 {[%emt 0:00:33]} d5 {[%emt 0:00:53]} 4. e3 {[%emt 0:00:11]} c5 {[%emt 0:01:33]} 5. d4 {[%emt 0:00:28]} a6 {[%emt 0:02:53]} 6. cxd5 {[%emt 0:01:44]} exd5 {[%emt 0:00:25]} 7. Bd3 {[%emt 0:03:30]} Nc6 {[%emt 0:03:19]} 8. O-O {[%emt 0:00:37]} Be7 {[%emt 0:12:50][%cal Bf8e7,Be7c5,Bc5a7][%mdl 32]} 9. dxc5 {[%emt 0:01:40]} Bxc5 {[%emt 0:00:21]} 10. b3 $5 {[%emt 0:00:37][%mdl 4] Exploring less charted territory. D32: Tarrasch Defence: Sidelines and lines without g3.} O-O {[%emt 0:00:27]} 11. Bb2 {[%emt 0:00:54]} Bg4 {[%emt 0:00:49]} 12. h3 {[%emt 0:05:18] The position is equal.} Bh5 {[%emt 0:00:29]} 13. Rc1 {[%emt 0:03:52]} Ba7 {[%emt 0:01:05] [#]} 14. Ne2 $1 $146 {[%emt 0:01:51][%cal Od3a6][%mdl 8] An important novelty.} ({Predecessor:} 14. Be2 h6 15. Nd4 Nxd4 16. Bxh5 Nf5 17. Bf3 Nxe3 18. fxe3 Bxe3+ 19. Kh1 Bxc1 20. Bxc1 {½-½ (79) Niemann,H (2571)-Yoo,C (2479) Chess.com INT 2021}) 14... Bxf3 {[%emt 0:09:22]} 15. gxf3 {[%emt 0:00:03]} d4 {[%emt 0:01:09]} 16. Rxc6 $1 {[%emt 0:18:00]} bxc6 {[%emt 0:00:18]} 17. Nxd4 {[%emt 0:00:07]} Bxd4 {[%emt 0:13:00]} 18. Bxd4 {[%emt 0:00:11] A strong pair of Bishops.} Qd5 {[%emt 0:07:22]} 19. f4 {[%emt 0:19:26]} Rfd8 {[%emt 0:05:28]} 20. Kh2 {[%emt 0:01:12]} c5 {[%emt 0:03:35]} (20... Qd6 $11) 21. Bxf6 $16 {[%emt 0:00:25]} gxf6 {[%emt 0:07:00]} (21... Qxd3 $16 22. Bxd8 Qxd8) 22. Qg4+ $18 {[%emt 0:00:13]} Kf8 {[%emt 0:00:43]} 23. Bc4 {[%emt 0:00:13]} ({Less strong is} 23. Bxh7 Rac8 $14) 23... Qc6 {[%emt 0:03:26]} 24. Rg1 $40 {[%emt 0:03:45][%mdl 128] [#] White threatens Qg8+ and mate. White has strong attack.} Ke7 {[%emt 0:02:10]} 25. Qh5 {[%emt 0:00:24][%csl LRf7,LRh7]} Rd2 $2 {[%emt 0:06:46]} (25... Rd7 $18 26. Bxf7 (26. Qxf7+ Kd8 $16) 26... Rf8) 26. Qxf7+ {[%emt 0:01:17]} Kd6 {[%emt 0:00:23]} 27. Rg7 {[%emt 0:00:18] Weighted Error Value: White=0.03 (flawless) /Black=0.55} 1-0

[Event "3rd Avagyan Memorial 2022"]
[Site "Jermuk"]
[Date "2022.06.24"]
[Round "5.3"]
[White "Nguyen, Thai Dai Van"]
[Black "Sargsyan, Shant"]
[Result "1/2-1/2"]
[ECO "E11"]
[WhiteElo "2612"]
[BlackElo "2641"]
[Annotator "TA"]
[PlyCount "156"]
[EventDate "2022.06.20"]
[EventType "tourn"]
[EventCountry "ARM"]
[SourceTitle "playchess.com"]
[Source "ChessBase"]
[SourceQuality "1"]
[TimeControl "40/5400+30:1800+30"]

{[%evp 13,156,12,14,-11,35,0,0,0,30,32,28,11,83,81,69,65,68,66,76,56,52,57,72,75,85,77,89,63,72,66,81,52,39,49,83,69,69,70,108,116,128,122,132,129,131,131,132,140,169,162,218,184,217,223,129,110,110,110,110,35,35,35,35,35,60,8,12,0,52,20,20,20,20,23,79,79,79,79,79,79,79,79,79,79,79,79,79,79,79,79,79,79,79,79,79,79,79,79,79,79,79,79,79,79,79,79,79,79,79,79,79,79,79,0,79,79,79,79,79,70,70,70,70,0,70,70,70,70,70,70,70,70,70,70,70,70,70,8,8,8,8,8,8,8,8]} 1. Nf3 {[%emt 0:06:42]} d5 {[%emt 0:01:51]} 2. d4 {[%emt 0:00:09]} Nf6 {[%emt 0:00:16]} 3. c4 {[%emt 0:00:09]} e6 {[%emt 0:00:12]} 4. g3 {[%emt 0:00:12]} Bb4+ {[%emt 0:00:36]} 5. Bd2 {[%emt 0:00:08]} Be7 {[%emt 0:00:08]} 6. Bg2 {[%emt 0:01:01]} O-O {[%emt 0:00:09]} 7. O-O {[%emt 0:00:39]} Nbd7 {[%emt 0:00:08]} 8. b4 {[%emt 0:00:20]} dxc4 {[%emt 0:01:16]} (8... Ne4 $11 {was preferrable.}) 9. Qc1 {[%emt 0:00:12]} a6 {[%emt 0:00:14]} 10. a4 {[%emt 0:01:05]} Rb8 {[%emt 0:03:35]} 11. Qxc4 {[%emt 0:01:58]} b5 {[%emt 0:00:32]} 12. axb5 {[%emt 0:06:46]} Rxb5 {[%emt 0:04:57]} (12... axb5 $11 13. Qb3 Bb7) 13. Na3 {[%emt 0:04:06]} Rb8 {[%emt 0:02:43]} 14. Rfc1 {[%emt 0:01:33]} Bd6 {[%emt 0:07:08]} 15. Qc2 {[%emt 0:21:55]} Bxb4 {[%emt 0:13:18]} 16. Qxc7 {[%emt 0:07:15]} (16. Nc4 $5 {[%cal Rc4a5]}) 16... Qxc7 {[%emt 0:05:37]} 17. Rxc7 {[%emt 0:00:28]} a5 {[%emt 0:01:09]} 18. Nc4 {[%emt 0:13:19]} Ba6 {[%emt 0:04:41]} 19. Bxb4 {[%emt 0:00:10]} Rxb4 {[%emt 0:00:07]} 20. Nxa5 {[%emt 0:00:11] Threatens to win with Nc6.} Bxe2 {[%emt 0:01:30]} 21. Nc6 {[%emt 0:00:19]} Rb2 {[%emt 0:11:05]} 22. Nfe5 {[%emt 0:00:51]} Nxe5 {[%emt 0:02:14]} 23. dxe5 {[%emt 0:14:21]} Ng4 {[%emt 0:04:53]} 24. h3 {[%emt 0:01:16]} Nh6 {[%emt 0:00:11]} 25. g4 {[%emt 0:00:30] Inhibits Nf5.} Bd3 {[%emt 0:04:42]} 26. Rd1 {[%emt 0:05:05]} (26. f4 {with more complications.} Kh8 27. Rd1 Ba6 28. Rd8) 26... Rb1 {[%emt 0:03:22]} 27. Rxb1 {[%emt 0:00:01]} Bxb1 {[%emt 0:00:06]} 28. f4 {[%emt 0:00:07]} Kh8 {[%emt 0:02:14]} 29. Ra7 {[%emt 0:00:43]} Ng8 {[%emt 0:08:00]} 30. Kf2 {[%emt 0:01:23]} h5 {[%emt 0:07:05]} 31. g5 $1 {[%emt 0:03:39] Prevents Nh6.} ({But not} 31. gxh5 Nh6 $16) 31... h4 {[%emt 0:00:35]} (31... Bg6 $142 32. Ke3 Rc8) 32. Ke3 $18 {[%emt 0:00:18]} Kh7 {[%emt 0:01:49]} 33. Nd4 {[%emt 0:00:38]} Bg6 {[%emt 0:08:30]} (33... Re8 $18 34. Bc6 (34. Rxf7 Ne7 $16) 34... Rf8) 34. Nf3 {[%emt 0:03:40]} Re8 {[%emt 0:00:04]} 35. Nxh4 {[%emt 0:00:04]} Ne7 {[%emt 0:00:15]} 36. Be4 {[%emt 0:00:45]} ({White should play} 36. Ra8 $16 Rxa8 37. Bxa8) 36... Bxe4 $14 {[%emt 0:00:58]} 37. Kxe4 {[%emt 0:00:02]} g6 {[%emt 0:00:17] Inhibits f5.} 38. Nf3 {[%emt 0:01:53]} Kg8 {[%emt 0:01:52]} 39. Nd4 {[%emt 0:02:04]} (39. Nd2 $14) 39... Nf5 $11 {[%emt 0:01:02]} 40. Nb5 {[%emt 0:00:00]} Rd8 {[%emt 0:00:00] Prevents Nd6.} (40... Rb8 $11 41. Nd4 Rb4) 41. Nc7 {[%emt 0:08:06]} Rd4+ {[%emt 0:05:00]} 42. Kf3 {[%emt 0:00:02] And now Ra8+ would win.} Rd3+ {[%emt 0:00:13]} 43. Ke2 {[%emt 0:01:40]} Rd8 {[%emt 0:00:08]} (43... Re3+ $1 $11 {keeps the balance.} 44. Kf2 Kf8) 44. Ra8 $16 {[%emt 0:01:33]} Rxa8 {[%emt 0:00:05]} 45. Nxa8 {[%emt 0:00:02]} Kf8 {[%emt 0:01:27]} 46. Nb6 $1 {[%emt 0:00:32]} Nd4+ {[%emt 0:00:38] [#]} 47. Ke3 $1 {[%emt 0:00:27]} Nf5+ {[%emt 0:00:07]} 48. Kd3 {[%emt 0:00:16]} Ke7 {[%emt 0:00:56]} 49. Nc4 {[%emt 0:00:34]} Kd7 {[%emt 0:03:02]} 50. Ne3 {[%emt 0:00:55] White wants to mate with Nxf5.} Ng3 {[%emt 0:00:21]} 51. Ng4 {[%emt 0:00:57]} Ke7 {[%emt 0:00:12]} 52. Nh6 {[%emt 0:00:28]} Kf8 {[%emt 0:01:03]} 53. Ke3 {[%emt 0:00:07]} Nh5 {[%emt 0:00:27]} 54. Kf3 {[%emt 0:00:07]} Ng7 {[%emt 0:00:51]} 55. Ng4 {[%emt 0:00:12]} Nf5 {[%emt 0:00:31]} 56. Ne3 {[%emt 0:00:06] Intending Nxf5 and mate.} Ng7 {[%emt 0:00:08]} 57. Nf1 {[%emt 0:00:29]} Nf5 {[%emt 0:01:23]} 58. Ng3 {[%emt 0:00:06] Nxf5 would kill now.} Ne7 {[%emt 0:00:19]} 59. Ke4 {[%emt 0:00:36]} Nc6 {[%emt 0:00:54]} 60. Kd3 {[%emt 0:00:41]} Nb4+ {[%emt 0:00:41]} 61. Kd4 {[%emt 0:00:06]} Nd5 {[%emt 0:00:34]} 62. Ne2 {[%emt 0:00:25]} Ne7 {[%emt 0:00:12]} 63. Ng3 {[%emt 0:00:18]} Nd5 {[%emt 0:00:25] [#]} 64. Ke4 $1 {[%emt 0:00:02]} Nc3+ {[%emt 0:00:15]} 65. Kf3 {[%emt 0:00:06]} Nd5 {[%emt 0:00:06]} 66. h4 {[%emt 0:00:04]} Ne7 {[%emt 0:01:04]} 67. Kg4 {[%emt 0:01:06]} Nd5 {[%emt 0:00:20]} 68. Kf3 {[%emt 0:00:36]} Ne7 $1 {[%emt 0:00:06]} 69. Ke4 {[%emt 0:00:04]} Nc6 {[%emt 0:01:08]} 70. Kd3 {[%emt 0:00:25]} Nb4+ {[%emt 0:00:29]} 71. Kd4 {[%emt 0:00:05]} Nc2+ {[%emt 0:00:59]} 72. Ke4 {[%emt 0:00:11]} Nb4 {[%emt 0:00:17]} 73. h5 {[%emt 0:00:38]} gxh5 {[%emt 0:00:35]} 74. Nxh5 {[%emt 0:00:04]} Nc6 {[%emt 0:00:17]} 75. f5 {[%emt 0:00:21]} (75. Nf6 $14) 75... exf5+ $11 {[%emt 0:00:11]} 76. Kxf5 {[%emt 0:00:05]} Ne7+ {[%emt 0:00:31]} 77. Ke4 {[%emt 0:00:01]} Kg8 {[%emt 0:00:57]} 78. Ng3 {[%emt 0:00:14]} Ng6 {[%emt 0:00:20]} 1/2-1/2

[Event "3rd Avagyan Memorial 2022"]
[Site "Jermuk"]
[Date "2022.06.24"]
[Round "5.4"]
[White "Tabatabaei, M. Amin"]
[Black "Martirosyan, Haik M."]
[Result "1/2-1/2"]
[ECO "C50"]
[WhiteElo "2650"]
[BlackElo "2652"]
[Annotator "TA"]
[PlyCount "56"]
[EventDate "2022.06.20"]
[EventType "tourn"]
[EventCountry "ARM"]
[SourceTitle "playchess.com"]
[Source "ChessBase"]
[SourceQuality "1"]
[TimeControl "40/5400+30:1800+30"]

{[%evp 9,56,6,16,10,17,14,18,16,9,9,17,15,17,20,12,0,14,3,16,13,10,8,20,8,28,13,2,5,12,13,0,0,4,0,0,0,0,0,0,0,0,0,0,0,0,0,0,0,8]} 1. e4 {[%emt 0:16:19]} e5 {[%emt 0:00:09]} 2. Nf3 {[%emt 0:00:05]} Nc6 {[%emt 0:00:06]} 3. Bc4 {[%emt 0:00:05]} Bc5 {[%emt 0:00:07]} 4. d3 {[%emt 0:00:06]} Nf6 {[%emt 0:00:05]} 5. Nc3 {[%emt 0:00:05]} a6 {[%emt 0:03:26]} 6. O-O {[%emt 0:00:43] C50: Hungarian Defence and Giuoco Pianissimo.} d6 $1 {[%emt 0:01:20] The main line 6...d6 scores better than 6...h6.} 7. a4 {[%emt 0:01:24]} Be6 {[%emt 0:06:59]} 8. Nd5 {[%emt 0:01:05]} h6 {[%emt 0:01:12] [#]} 9. c3 $146 {[%emt 0:00:48] [#] Threatens to win with d4.} ({Predecessor:} 9. Nxf6+ Qxf6 10. Bxe6 Qxe6 11. c3 a5 12. Re1 O-O-O 13. d4 exd4 14. cxd4 Nxd4 15. Nxd4 {0-1 (57) Lemos,C (1689)-Jabour,R (1719) Campo Grande 2016}) 9... Ba7 {[%emt 0:01:34]} 10. Nxf6+ {[%emt 0:15:51]} (10. Be3 {feels hotter.} Bxe3 11. Nxf6+ Qxf6 12. fxe3 Bxc4 13. Nd2) 10... Qxf6 {[%emt 0:00:48]} 11. Bxe6 {[%emt 0:00:05]} Qxe6 {[%emt 0:05:05]} 12. Be3 {[%emt 0:00:59]} O-O {[%emt 0:02:20]} 13. Nh4 {[%emt 0:22:19]} Ne7 {[%emt 0:03:07]} 14. Bxa7 {[%emt 0:03:18]} Rxa7 {[%emt 0:00:13]} 15. d4 {[%emt 0:00:31]} Raa8 {[%emt 0:06:52]} 16. Re1 {[%emt 0:01:19]} Rad8 {[%emt 0:09:34]} 17. a5 {[%emt 0:02:41]} Rfe8 {[%emt 0:07:07] The position is equal.} 18. h3 {[%emt 0:07:38]} exd4 {[%emt 0:08:37]} 19. cxd4 {[%emt 0:02:07]} c5 {[%emt 0:00:06]} 20. Nf3 {[%emt 0:02:24]} cxd4 {[%emt 0:01:14]} 21. Qxd4 {[%emt 0:00:52]} d5 {[%emt 0:10:40]} 22. exd5 {[%emt 0:09:46]} Qxd5 {[%emt 0:00:39]} 23. Qxd5 {[%emt 0:00:23]} Nxd5 {[%emt 0:01:01]} 24. Rxe8+ {[%emt 0:00:10]} Rxe8 $11 {[%emt 0:00:07] KRN-KRN} 25. Rd1 {[%emt 0:00:05]} Nf6 {[%emt 0:01:30]} 26. Kf1 {[%emt 0:04:01]} Rc8 {[%emt 0:03:04]} 27. b4 {[%emt 0:01:31]} Kf8 {[%emt 0:01:28]} 28. Rd4 {[%emt 0:02:37]} Ke7 {[%emt 0:01:06] An interesting draw.  Weighted Error Value: White=0.03 (flawless) /Black=0.04 (flawless)} 1/2-1/2

[Event "3rd Avagyan Memorial 2022"]
[Site "Jermuk"]
[Date "2022.06.24"]
[Round "5.5"]
[White "Ter-Sahakyan, Samvel"]
[Black "Petrosyan, Manuel"]
[Result "1-0"]
[ECO "E49"]
[WhiteElo "2640"]
[BlackElo "2638"]
[Annotator "TA"]
[PlyCount "75"]
[EventDate "2022.06.20"]
[EventType "tourn"]
[EventCountry "ARM"]
[SourceTitle "playchess.com"]
[Source "ChessBase"]
[SourceQuality "1"]
[TimeControl "40/5400+30:1800+30"]

{[%evp 19,75,-5,0,0,0,-6,-10,-20,-20,-27,-2,-22,-10,-29,-35,-27,-23,-29,322,308,833,824,843,853,839,846,832,739,805,782,814,829,908,872,987,1016,1002,993,989,982,904,967,967,982,977,968,959,612,954,945,1195,1192,1465,1428,1345,1318,1179,1068]} 1. d4 {[%emt 0:00:05]} Nf6 {[%emt 0:00:09]} 2. c4 {[%emt 0:00:08]} e6 {[%emt 0:00:10]} 3. Nc3 {[%emt 0:00:07]} Bb4 {[%emt 0:00:14]} 4. e3 {[%emt 0:00:07]} O-O {[%emt 0:00:18]} 5. Bd3 {[%emt 0:00:06]} d5 {[%emt 0:00:11]} 6. a3 {[%emt 0:00:27]} Bxc3+ {[%emt 0:00:36]} 7. bxc3 {[%emt 0:00:06]} dxc4 {[%emt 0:00:11]} 8. Bxc4 {[%emt 0:00:06]} c5 {[%emt 0:00:10]} 9. Ne2 {[%emt 0:00:31]} Qc7 {[%emt 0:00:36]} 10. Bd3 {[%emt 0:00:12]} Nc6 {[%emt 0:01:18]} 11. O-O {[%emt 0:00:19] E49: Nimzo-Indian: Rubinstein: 5 Bd3 d5 6 a3 Bxc3+ 7 bxc3.} e5 {[%emt 0:00:08]} ({Resist} 11... Ng4 12. Nf4 Nf6 13. Nh5 $14 (13. dxc5 Ne5 $11)) (11... c4 12. Bxc4 e5 13. Bd3 $16) 12. Ng3 $1 {[%emt 0:00:19][%mdl 4] outshines the older 12.Bb2.} Be6 {[%emt 0:01:02]} 13. f4 {[%emt 0:00:46] The position is equal.} exd4 {[%emt 0:06:43]} 14. cxd4 {[%emt 0:00:17]} Rad8 {[%emt 0:05:31]} 15. Rb1 {[%emt 0:00:19] [#]} a6 $146 {[%emt 0:08:27]} ({Predecessor:} 15... Rfe8 16. Nh5 Nxh5 17. Qxh5 f5 18. dxc5 Ne7 19. Bb2 Bf7 20. Qg5 Bg6 21. Bc4+ Kh8 {1-0 (34) Sarana,A (2675)-Kollars,D (2635) Chess.com INT 2022}) 16. h3 {[%emt 0:01:15]} (16. f5 $5 {[%cal Rf5e6]} Bd5 17. e4 $15 (17. dxc5 $2 Ne5 $19)) 16... b5 {[%emt 0:00:56]} 17. Bb2 {[%emt 0:00:47]} cxd4 {[%emt 0:03:36] Strongly threatening ...Nd5.} 18. Rc1 {[%emt 0:25:28]} dxe3 $2 {[%emt 0:16:16][%mdl 8192] Loses the game.} (18... Qb6 $11 19. Qf3 Bc4 20. Bxc4 bxc4 21. Rxc4 Qxb2 22. Rxc6 dxe3 23. Qxe3 Rd2) 19. Bxf6 $18 {[%emt 0:17:34][%cal Od3h7] Bxh7+! would kill now.} gxf6 $2 {[%emt 0:02:00] [#]} (19... e2 20. Qxe2 gxf6) 20. Qh5 $1 {[%emt 0:06:24][%csl Gd3][%cal Rh5h7] White is clearly winning.} Rxd3 {[%emt 0:00:06] [#]} 21. Qh6 $1 {[%emt 0:00:03] Intending Nh5 and mate.} Rd5 {[%emt 0:09:04]} 22. Ne4 {[%emt 0:04:16]} Qe7 {[%emt 0:00:01]} 23. Nxf6+ {[%emt 0:16:19]} Qxf6 {[%emt 0:00:09]} 24. Qxf6 {[%emt 0:00:03] aiming for Rf3.} Nd4 {[%emt 0:00:36] Inhibits Rf3.} 25. Rfe1 {[%emt 0:03:25]} e2 {[%emt 0:01:57]} 26. Rc3 {[%emt 0:00:26][%cal Bc1c3,Bc3g3,Bg3g7][%mdl 32] White wants to mate with Rg3+.} Rc8 {[%emt 0:00:50]} 27. Rg3+ {[%emt 0:05:16]} Kf8 {[%emt 0:00:38]} 28. Rg7 {[%emt 0:00:05]} Ke8 {[%emt 0:01:30]} 29. Rxh7 {[%emt 0:01:17]} Rc4 {[%emt 0:01:12]} 30. Rh8+ {[%emt 0:06:23]} Kd7 {[%emt 0:00:02]} 31. Rd8+ {[%emt 0:00:06]} Kc6 {[%emt 0:00:04]} 32. Rxd5 {[%emt 0:00:04]} Kxd5 {[%emt 0:00:03]} 33. Qe5+ {[%emt 0:00:15]} Kc6 {[%emt 0:00:02]} 34. h4 {[%emt 0:00:28]} Bg4 {[%emt 0:01:36]} 35. h5 {[%emt 0:01:49]} Bxh5 {[%emt 0:00:39]} 36. Qxh5 {[%emt 0:00:17]} f5 {[%emt 0:00:04]} 37. Qe8+ {[%emt 0:04:04]} Kb6 {[%emt 0:00:08]} 38. Qd8+ {[%emt 0:00:09] Weighted Error Value: White=0.03 (flawless) /Black=0.61} 1-0